Workbook

Sheet MenuPrincipal

Sheet SelectionProduction

Sheet 13µ
A1: FICHE DE PRODUCTION 13µ | O1: Exemplaire Administratif | X1: FICHE DE PRODUCTION 13µ | AN1: Exemplaire Stock
A2: Numéro | E2: 728 | I2: Date : | M2: =TODAY() -> 2017-12-22 | X2: Numéro | AB2: =E2 -> 728 | AF2: Date : | AJ2: =M2 -> 2017-12-22
A3: INVENTAIRE | X3: INVENTAIRE
A4: Stock physique avant production pour la référence à produire | X4: Stock physique avant production pour la référence à produire
A5: Jumbo | C5: Qts : | E5: =E6/60 -> 79.75 | H5: Auto | J5: Qts : | L5: 10 | O5: Manuel | Q5: Qts : | S5: 0 | X5: Jumbo | Z5: Qts : | AB5: =E5 -> 79.75 | AE5: Auto | AG5: Qts : | AI5: =L5 -> 10 | AL5: Manuel | AN5: Qts : | AP5: =S5 -> 0
C6: Kg : | E6: 4785 | J6: Kg : | L6: 150 | Q6: Kg : | S6: 923.5 | Z6: Kg : | AB6: =E6 -> 4785 | AG6: Kg : | AI6: =L6 -> 150 | AN6: Kg : | AP6: =S6 -> 923.5
A7: LOT N° Fournisseur ex ( CF197 + N° Palette) | X7: LOT N° Fournisseur ex ( CF197 + N° Palette)
A8: LOT : | K8: CF | O8: - | R8: 203 | X8: LOT : | AC8: =F8 -> 0 | AH8: CF | AL8: -
A9: Métrage de production | X9: Métrage de production
A10: Métrage Auto | L10: Métrage Manuel | Q10: 250 | X10: Métrage Auto | AC10: =F10 -> 0 | AI10: Métrage Manuel | AN10: =Q10 -> 250
A11: Tare : | N11: 0 | X11: Tare : | AK11: =N11 -> 0
N12: Kg | R12: Rlx | AK12: Kg | AO12: Rlx
A13: Nombre de JUMBO utilisé : | N13: =R13*60 -> 960 | R13: 16 | X13: Nombre de JUMBO utilisé : | AK13: =N13 -> 960 | AO13: =R13 -> 16
A14: Nombre de rouleaux Manuel produits : | N14: =R14*N15 -> 910 | R14: 350 | X14: Nbre de rlx Manuel produits : | AK14: =N14 -> 910 | AO14: =R14 -> 350
A15: Poids Moyen : | N15: 2.6 | X15: Poids Moyen | AK15: =N15 -> 2.6
A16: Kilos perdus : | N16: 0 | R16: 2 | X16: Kilos perdus : | AK16: =N16 -> 0 | AO16: =R16 -> 2
A17: Commentaire : | X17: Commentaire :
A19: Partie Administratif
A20: Ordre de fabrication | H20: Bon d’entré | O20: Bon de sorti
A21: =E2 -> 728
A22: Stock après production | H22: Jumbo | M22: Auto | R22: Manuel
H23: Qts : | J23: =E5-R13 -> 63.75 | M23: Qts : | R23: Qts : | T23: =S5+R14 -> 350
H24: Kg : | J24: =E6-N13 -> 3825 | M24: Kg : | R24: Kg : | T24: =S6+R14 -> 1273.5

Sheet 15µ
A1: FICHE DE PRODUCTION 15µ | O1: Exemplaire Administratif | X1: FICHE DE PRODUCTION 15µ | AN1: Exemplaire Stock
A2: Numéro | E2: ='13µ'!E2:H2 -> 728 | I2: Date : | M2: =TODAY() -> 2017-12-22 | X2: Numéro | AB2: =E2 -> 728 | AF2: Date : | AJ2: =M2 -> 2017-12-22
A3: INVENTAIRE | X3: INVENTAIRE
A4: Stock physique avant production pour la référence à produire | X4: Stock physique avant production pour la référence à produire
A5: Jumbo | C5: Qts : | E5: 32 | H5: Auto | J5: Qts : | O5: Manuel | Q5: Qts : | S5: 0 | X5: Jumbo | Z5: Qts : | AB5: =E5 -> 32 | AE5: Auto | AG5: Qts : | AI5: =L5 ->  | AL5: Manuel | AN5: Qts : | AP5: =S5 -> 0
C6: Kg : | E6: 1920 | J6: Kg : | L6: 1250 | Q6: Kg : | S6: 850 | Z6: Kg : | AB6: =E6 -> 1920 | AG6: Kg : | AI6: =L6 -> 1250 | AN6: Kg : | AP6: =S6 -> 850
A7: LOT N° Fournisseur ex ( CF197 + N° Palette) | X7: LOT N° Fournisseur ex ( CF197 + N° Palette)
A8: LOT : | K8: CF | O8: - | X8: LOT : | AC8: =F8 -> 0 | AH8: CF | AL8: - | AO8: =R8 -> 0
A9: Métrage de production | X9: Métrage de production
A10: Métrage Auto | F10: 0 | L10: Métrage Manuel | Q10: 0 | X10: Métrage Auto | AC10: =F10 -> 0 | AI10: Métrage Manuel | AN10: =Q10 -> 0
A11: Tare : | N11: 0 | X11: Tare : | AK11: =N11 -> 0
N12: Kg | R12: Rlx | AK12: Kg | AO12: Rlx
A13: Nombre de JUMBO utilisé : | N13: 3 | X13: Nombre de JUMBO utilisé : | AK13: =N13 -> 3 | AO13: =R13 -> 0
A14: Nombre de rouleaux Manuel produits : | N14: 0 | X14: Nbre de rlx Manuel produits : | AK14: =N14 -> 0 | AO14: =R14 -> 0
A15: Poids Moyen : | N15: 0 | X15: Poids Moyen | AK15: =N15 -> 0
A16: Kilos perdus : | N16: 0 | X16: Kilos perdus : | AK16: =N16 -> 0 | AO16: =R16 -> 0
A17: Commentaire : | X17: Commentaire :
A19: Partie Administratif
A20: Ordre de fabrication | H20: Bon d’entré | O20: Bon de sorti
A21: =E2 -> 728
A22: Stock après production | H22: Jumbo | M22: Auto | R22: Manuel
H23: Qts : | J23: =E5-R13 -> 32 | M23: Qts : | R23: Qts : | T23: =S5+R14 -> 0
H24: Kg : | J24: =E6-N13 -> 1917 | M24: Kg : | R24: Kg : | T24: =S6+R14 -> 850

Sheet 17µ
A1: FICHE DE PRODUCTION 17µ | O1: Exemplaire Administratif | X1: FICHE DE PRODUCTION 17µ | AN1: Exemplaire Stock
A2: Numéro | E2: ='13µ'!E2:H2 -> 728 | I2: Date : | M2: =TODAY() -> 2017-12-22 | X2: Numéro | AB2: =E2 -> 728 | AF2: Date : | AJ2: =M2 -> 2017-12-22
A3: INVENTAIRE | X3: INVENTAIRE
A4: Stock physique avant production pour la référence à produire | X4: Stock physique avant production pour la référence à produire
A5: Jumbo | C5: Qts : | H5: Auto | J5: Qts : | O5: Manuel | Q5: Qts : | S5: 0 | X5: Jumbo | Z5: Qts : | AB5: =E5 -> 0 | AE5: Auto | AG5: Qts : | AI5: =L5 ->  | AL5: Manuel | AN5: Qts : | AP5: =S5 -> 0
C6: Kg : | E6: 3000 | J6: Kg : | L6: 742 | Q6: Kg : | S6: 536 | Z6: Kg : | AB6: =E6 -> 3000 | AG6: Kg : | AI6: =L6 -> 742 | AN6: Kg : | AP6: =S6 -> 536
A7: LOT N° Fournisseur ex ( CF197 + N° Palette) | X7: LOT N° Fournisseur ex ( CF197 + N° Palette)
A8: LOT : | K8: CF | O8: - | X8: LOT : | AC8: =F8 -> 0 | AH8: CF | AL8: - | AO8: =R8 -> 0
A9: Métrage de production | X9: Métrage de production
A10: Métrage Auto | F10: 0 | L10: Métrage Manuel | Q10: 0 | X10: Métrage Auto | AC10: =F10 -> 0 | AI10: Métrage Manuel | AN10: =Q10 -> 0
A11: Tare : | N11: 0 | X11: Tare : | AK11: =N11 -> 0
N12: Kg | R12: Rlx | AK12: Kg | AO12: Rlx
A13: Nombre de JUMBO utilisé : | N13: 3 | R13: 3 | X13: Nombre de JUMBO utilisé : | AK13: =N13 -> 3 | AO13: =R13 -> 3
A14: Nombre de rouleaux Manuel produits : | N14: 0 | X14: Nbre de rlx Manuel produits : | AK14: =N14 -> 0 | AO14: =R14 -> 0
A15: Poids Moyen : | N15: 0 | X15: Poids Moyen | AK15: =N15 -> 0
A16: Kilos perdus : | N16: 0 | X16: Kilos perdus : | AK16: =N16 -> 0 | AO16: =R16 -> 0
A17: Commentaire : | X17: Commentaire :
A19: Partie Administratif
A20: Ordre de fabrication | H20: Bon d’entré | O20: Bon de sorti
A21: =E2 -> 728
A22: Stock après production | H22: Jumbo | M22: Auto | R22: Manuel
H23: Qts : | J23: =E5-R13 -> -3 | M23: Qts : | R23: Qts : | T23: =S5+R14 -> 0
H24: Kg : | J24: =E6-N13 -> 2997 | M24: Kg : | R24: Kg : | T24: =S6+R14 -> 536

Sheet 18µ
A1: FICHE DE PRODUCTION 18µ | O1: Exemplaire Administratif | X1: FICHE DE PRODUCTION 18µ | AN1: Exemplaire Stock
A2: Numéro | E2: ='13µ'!E2:H2 -> 728 | I2: Date : | M2: =TODAY() -> 2017-12-22 | X2: Numéro | AB2: =E2 -> 728 | AF2: Date : | AJ2: =M2 -> 2017-12-22
A3: INVENTAIRE | X3: INVENTAIRE
A4: Stock physique avant production pour la référence à produire | X4: Stock physique avant production pour la référence à produire
A5: Jumbo | C5: Qts : | E5: 10 | H5: Auto | J5: Qts : | O5: Manuel | Q5: Qts : | S5: 0 | X5: Jumbo | Z5: Qts : | AB5: =E5 -> 10 | AE5: Auto | AG5: Qts : | AI5: =L5 ->  | AL5: Manuel | AN5: Qts : | AP5: =S5 -> 0
C6: Kg : | E6: 8 | J6: Kg : | Q6: Kg : | S6: 0 | Z6: Kg : | AB6: =E6 -> 8 | AG6: Kg : | AI6: =L6 ->  | AN6: Kg : | AP6: =S6 -> 0
A7: LOT N° Fournisseur ex ( CF197 + N° Palette) | X7: LOT N° Fournisseur ex ( CF197 + N° Palette)
A8: LOT : | K8: CF | O8: - | X8: LOT : | AC8: =F8 -> 0 | AH8: CF | AL8: - | AO8: =R8 -> 0
A9: Métrage de production | X9: Métrage de production
A10: Métrage Auto | F10: 0 | L10: Métrage Manuel | Q10: 0 | X10: Métrage Auto | AC10: =F10 -> 0 | AI10: Métrage Manuel | AN10: =Q10 -> 0
A11: Tare : | N11: 0 | X11: Tare : | AK11: =N11 -> 0
N12: Kg | R12: Rlx | AK12: Kg | AO12: Rlx
A13: Nombre de JUMBO utilisé : | N13: 3 | R13: 3 | X13: Nombre de JUMBO utilisé : | AK13: =N13 -> 3 | AO13: =R13 -> 3
A14: Nombre de rouleaux Manuel produits : | N14: 0 | X14: Nbre de rlx Manuel produits : | AK14: =N14 -> 0 | AO14: =R14 -> 0
A15: Poids Moyen : | N15: 0 | X15: Poids Moyen | AK15: =N15 -> 0
A16: Kilos perdus : | N16: 0 | X16: Kilos perdus : | AK16: =N16 -> 0 | AO16: =R16 -> 0
A17: Commentaire : | X17: Commentaire :
A19: Partie Administratif
A20: Ordre de fabrication | H20: Bon d’entré | O20: Bon de sorti
A21: =E2 -> 728
A22: Stock après production | H22: Jumbo | M22: Auto | R22: Manuel
H23: Qts : | J23: =E5-R13 -> 7 | M23: Qts : | R23: Qts : | T23: =S5+R14 -> 0
H24: Kg : | J24: =E6-N13 -> 5 | M24: Kg : | R24: Kg : | T24: =S6+R14 -> 0

Sheet 20µ
A1: FICHE DE PRODUCTION 20µ | O1: Exemplaire Administratif | X1: FICHE DE PRODUCTION 20µ | AN1: Exemplaire Stock
A2: Numéro | E2: ='13µ'!E2:H2 -> 728 | I2: Date : | M2: =TODAY() -> 2017-12-22 | X2: Numéro | AB2: =E2 -> 728 | AF2: Date : | AJ2: =M2 -> 2017-12-22
A3: INVENTAIRE | X3: INVENTAIRE
A4: Stock physique avant production pour la référence à produire | X4: Stock physique avant production pour la référence à produire
A5: Jumbo | C5: Qts : | E5: 10 | H5: Auto | J5: Qts : | O5: Manuel | Q5: Qts : | S5: 0 | X5: Jumbo | Z5: Qts : | AB5: =E5 -> 10 | AE5: Auto | AG5: Qts : | AI5: =L5 ->  | AL5: Manuel | AN5: Qts : | AP5: =S5 -> 0
C6: Kg : | E6: 8 | J6: Kg : | L6: 20 | Q6: Kg : | S6: 21 | Z6: Kg : | AB6: =E6 -> 8 | AG6: Kg : | AI6: =L6 -> 20 | AN6: Kg : | AP6: =S6 -> 21
A7: LOT N° Fournisseur ex ( CF197 + N° Palette) | X7: LOT N° Fournisseur ex ( CF197 + N° Palette)
A8: LOT : | K8: CF | O8: - | X8: LOT : | AC8: =F8 -> 0 | AH8: CF | AL8: - | AO8: =R8 -> 0
A9: Métrage de production | X9: Métrage de production
A10: Métrage Auto | F10: 0 | L10: Métrage Manuel | Q10: 0 | X10: Métrage Auto | AC10: =F10 -> 0 | AI10: Métrage Manuel | AN10: =Q10 -> 0
A11: Tare : | N11: 0 | X11: Tare : | AK11: =N11 -> 0
N12: Kg | R12: Rlx | AK12: Kg | AO12: Rlx
A13: Nombre de JUMBO utilisé : | N13: 3 | R13: 3 | X13: Nombre de JUMBO utilisé : | AK13: =N13 -> 3 | AO13: =R13 -> 3
A14: Nombre de rouleaux Manuel produits : | N14: 0 | X14: Nbre de rlx Manuel produits : | AK14: =N14 -> 0 | AO14: =R14 -> 0
A15: Poids Moyen : | N15: 0 | X15: Poids Moyen | AK15: =N15 -> 0
A16: Kilos perdus : | N16: 0 | X16: Kilos perdus : | AK16: =N16 -> 0 | AO16: =R16 -> 0
A17: Commentaire : | X17: Commentaire :
A19: Partie Administratif
A20: Ordre de fabrication | H20: Bon d’entré | O20: Bon de sorti
A21: =E2 -> 728
A22: Stock après production | H22: Jumbo | M22: Auto | R22: Manuel
H23: Qts : | J23: =E5-R13 -> 7 | M23: Qts : | R23: Qts : | T23: =S5+R14 -> 0
H24: Kg : | J24: =E6-N13 -> 5 | M24: Kg : | R24: Kg : | T24: =S6+R14 -> 21

Sheet 23µ
A1: FICHE DE PRODUCTION 23µ | O1: Exemplaire Administratif | X1: FICHE DE PRODUCTION 23µ | AN1: Exemplaire Stock
A2: Numéro | E2: ='13µ'!E2:H2 -> 728 | I2: Date : | M2: =TODAY() -> 2017-12-22 | X2: Numéro | AB2: =E2 -> 728 | AF2: Date : | AJ2: =M2 -> 2017-12-22
A3: INVENTAIRE | X3: INVENTAIRE
A4: Stock physique avant production pour la référence à produire | X4: Stock physique avant production pour la référence à produire
A5: Jumbo | C5: Qts : | E5: 80 | H5: Auto | J5: Qts : | O5: Manuel | Q5: Qts : | X5: Jumbo | Z5: Qts : | AB5: =E5 -> 80 | AE5: Auto | AG5: Qts : | AI5: =L5 ->  | AL5: Manuel | AN5: Qts : | AP5: =S5 -> 0
C6: Kg : | E6: 5738 | J6: Kg : | L6: 23 | Q6: Kg : | S6: 24 | Z6: Kg : | AB6: =E6 -> 5738 | AG6: Kg : | AI6: =L6 -> 23 | AN6: Kg : | AP6: =S6 -> 24
A7: LOT N° Fournisseur ex ( CF197 + N° Palette) | X7: LOT N° Fournisseur ex ( CF197 + N° Palette)
A8: LOT : | K8: CF | O8: - | X8: LOT : | AC8: =F8 -> 0 | AH8: CF | AL8: - | AO8: =R8 -> 0
A9: Métrage de production | X9: Métrage de production
A10: Métrage Auto | F10: 0 | L10: Métrage Manuel | Q10: 0 | X10: Métrage Auto | AC10: =F10 -> 0 | AI10: Métrage Manuel | AN10: =Q10 -> 0
A11: Tare : | N11: 0 | X11: Tare : | AK11: =N11 -> 0
N12: Kg | R12: Rlx | AK12: Kg | AO12: Rlx
A13: Nombre de JUMBO utilisé : | N13: 953 | R13: 16 | X13: Nombre de JUMBO utilisé : | AK13: =N13 -> 953 | AO13: =R13 -> 16
A14: Nombre de rouleaux Manuel produits : | N14: 923.5 | R14: 350 | X14: Nbre de rlx Manuel produits : | AK14: =N14 -> 923.5 | AO14: =R14 -> 350
A15: Poids Moyen : | N15: 2.6 | X15: Poids Moyen | AK15: =N15 -> 2.6
A16: Kilos perdus : | N16: =R16*N15 -> 5.2 | R16: 2 | X16: Kilos perdus : | AK16: =N16 -> 5.2 | AO16: =R16 -> 2
A17: Commentaire : | X17: Commentaire :
A19: Partie Administratif
A20: Ordre de fabrication | H20: Bon d’entré | O20: Bon de sorti
A21: =E2 -> 728
A22: Stock après production | H22: Jumbo | M22: Auto | R22: Manuel
H23: Qts : | J23: =E5-R13 -> 64 | M23: Qts : | R23: Qts : | T23: =R14 -> 350
H24: Kg : | J24: =E6-N13 -> 4785 | M24: Kg : | R24: Kg : | T24: =R14 -> 350

Sheet 25µ
A1: FICHE DE PRODUCTION 25µ | O1: Exemplaire Administratif | X1: FICHE DE PRODUCTION 25µ | AN1: Exemplaire Stock
A2: Numéro | E2: ='13µ'!E2:H2 -> 728 | I2: Date : | M2: =TODAY() -> 2017-12-22 | X2: Numéro | AB2: =E2 -> 728 | AF2: Date : | AJ2: =M2 -> 2017-12-22
A3: INVENTAIRE | X3: INVENTAIRE
A4: Stock physique avant production pour la référence à produire | X4: Stock physique avant production pour la référence à produire
A5: Jumbo | C5: Qts : | E5: 0 | H5: Auto | J5: Qts : | O5: Manuel | Q5: Qts : | S5: 0 | X5: Jumbo | Z5: Qts : | AB5: =E5 -> 0 | AE5: Auto | AG5: Qts : | AI5: =L5 ->  | AL5: Manuel | AN5: Qts : | AP5: =S5 -> 0
C6: Kg : | E6: 0 | J6: Kg : | L6: 25 | Q6: Kg : | S6: 26 | Z6: Kg : | AB6: =E6 -> 0 | AG6: Kg : | AI6: =L6 -> 25 | AN6: Kg : | AP6: =S6 -> 26
A7: LOT N° Fournisseur ex ( CF197 + N° Palette) | X7: LOT N° Fournisseur ex ( CF197 + N° Palette)
A8: LOT : | K8: CF | O8: - | X8: LOT : | AC8: =F8 -> 0 | AH8: CF | AL8: - | AO8: =R8 -> 0
A9: Métrage de production | X9: Métrage de production
A10: Métrage Auto | F10: 0 | L10: Métrage Manuel | Q10: 0 | X10: Métrage Auto | AC10: =F10 -> 0 | AI10: Métrage Manuel | AN10: =Q10 -> 0
A11: Tare : | N11: 0 | X11: Tare : | AK11: =N11 -> 0
N12: Kg | R12: Rlx | AK12: Kg | AO12: Rlx
A13: Nombre de JUMBO utilisé : | N13: 0 | R13: 0 | X13: Nombre de JUMBO utilisé : | AK13: =N13 -> 0 | AO13: =R13 -> 0
A14: Nombre de rouleaux Manuel produits : | N14: 0 | X14: Nbre de rlx Manuel produits : | AK14: =N14 -> 0 | AO14: =R14 -> 0
A15: Poids Moyen : | N15: 0 | X15: Poids Moyen | AK15: =N15 -> 0
A16: Kilos perdus : | N16: 0 | X16: Kilos perdus : | AK16: =N16 -> 0 | AO16: =R16 -> 0
A17: Commentaire : | X17: Commentaire :
A19: Partie Administratif
A20: Ordre de fabrication | H20: Bon d’entré | O20: Bon de sorti
A21: =E2 -> 728
A22: Stock après production | H22: Jumbo | M22: Auto | R22: Manuel
H23: Qts : | J23: 0 | M23: Qts : | R23: Qts : | T23: =S5+R14 -> 0
H24: Kg : | J24: 0 | M24: Kg : | R24: Kg : | T24: =S6+R14 -> 26

Sheet 28µ
A1: FICHE DE PRODUCTION 28µ | O1: Exemplaire Administratif | X1: FICHE DE PRODUCTION 28µ | AN1: Exemplaire Stock
A2: Numéro | E2: ='13µ'!E2:H2 -> 728 | I2: Date : | M2: =TODAY() -> 2017-12-22 | X2: Numéro | AB2: =E2 -> 728 | AF2: Date : | AJ2: =M2 -> 2017-12-22
A3: INVENTAIRE | X3: INVENTAIRE
A4: Stock physique avant production pour la référence à produire | X4: Stock physique avant production pour la référence à produire
A5: Jumbo | C5: Qts : | E5: 10 | H5: Auto | J5: Qts : | O5: Manuel | Q5: Qts : | S5: 0 | X5: Jumbo | Z5: Qts : | AB5: =E5 -> 10 | AE5: Auto | AG5: Qts : | AI5: =L5 ->  | AL5: Manuel | AN5: Qts : | AP5: =S5 -> 0
C6: Kg : | E6: 8 | J6: Kg : | L6: 28 | Q6: Kg : | S6: 29 | Z6: Kg : | AB6: =E6 -> 8 | AG6: Kg : | AI6: =L6 -> 28 | AN6: Kg : | AP6: =S6 -> 29
A7: LOT N° Fournisseur ex ( CF197 + N° Palette) | X7: LOT N° Fournisseur ex ( CF197 + N° Palette)
A8: LOT : | K8: CF | O8: - | X8: LOT : | AC8: =F8 -> 0 | AH8: CF | AL8: - | AO8: =R8 -> 0
A9: Métrage de production | X9: Métrage de production
A10: Métrage Auto | F10: 0 | L10: Métrage Manuel | Q10: 0 | X10: Métrage Auto | AC10: =F10 -> 0 | AI10: Métrage Manuel | AN10: =Q10 -> 0
A11: Tare : | N11: 0 | X11: Tare : | AK11: =N11 -> 0
N12: Kg | R12: Rlx | AK12: Kg | AO12: Rlx
A13: Nombre de JUMBO utilisé : | N13: 3 | R13: 3 | X13: Nombre de JUMBO utilisé : | AK13: =N13 -> 3 | AO13: =R13 -> 3
A14: Nombre de rouleaux Manuel produits : | N14: 0 | X14: Nbre de rlx Manuel produits : | AK14: =N14 -> 0 | AO14: =R14 -> 0
A15: Poids Moyen : | N15: 0 | X15: Poids Moyen | AK15: =N15 -> 0
A16: Kilos perdus : | N16: 0 | X16: Kilos perdus : | AK16: =N16 -> 0 | AO16: =R16 -> 0
A17: Commentaire : | X17: Commentaire :
A19: Partie Administratif
A20: Ordre de fabrication | H20: Bon d’entré | O20: Bon de sorti
A21: =E2 -> 728
A22: Stock après production | H22: Jumbo | M22: Auto | R22: Manuel
H23: Qts : | J23: =E5-R13 -> 7 | M23: Qts : | R23: Qts : | T23: =S5+R14 -> 0
H24: Kg : | J24: =E6-N13 -> 5 | M24: Kg : | R24: Kg : | T24: =S6+R14 -> 29

Sheet 30µ
A1: FICHE DE PRODUCTION 30µ | O1: Exemplaire Administratif | X1: FICHE DE PRODUCTION 30µ | AN1: Exemplaire Stock
A2: Numéro | E2: ='13µ'!E2:H2 -> 728 | I2: Date : | M2: =TODAY() -> 2017-12-22 | X2: Numéro | AB2: =E2 -> 728 | AF2: Date : | AJ2: =M2 -> 2017-12-22
A3: INVENTAIRE | X3: INVENTAIRE
A4: Stock physique avant production pour la référence à produire | X4: Stock physique avant production pour la référence à produire
A5: Jumbo | C5: Qts : | E5: 10 | H5: Auto | J5: Qts : | O5: Manuel | Q5: Qts : | S5: 0 | X5: Jumbo | Z5: Qts : | AB5: =E5 -> 10 | AE5: Auto | AG5: Qts : | AI5: =L5 ->  | AL5: Manuel | AN5: Qts : | AP5: =S5 -> 0
C6: Kg : | E6: 8 | J6: Kg : | L6: 30 | Q6: Kg : | S6: 31 | Z6: Kg : | AB6: =E6 -> 8 | AG6: Kg : | AI6: =L6 -> 30 | AN6: Kg : | AP6: =S6 -> 31
A7: LOT N° Fournisseur ex ( CF197 + N° Palette) | X7: LOT N° Fournisseur ex ( CF197 + N° Palette)
A8: LOT : | K8: CF | O8: - | X8: LOT : | AC8: =F8 -> 0 | AH8: CF | AL8: - | AO8: =R8 -> 0
A9: Métrage de production | X9: Métrage de production
A10: Métrage Auto | F10: 0 | L10: Métrage Manuel | Q10: 0 | X10: Métrage Auto | AC10: =F10 -> 0 | AI10: Métrage Manuel | AN10: =Q10 -> 0
A11: Tare : | N11: 0 | X11: Tare : | AK11: =N11 -> 0
N12: Kg | R12: Rlx | AK12: Kg | AO12: Rlx
A13: Nombre de JUMBO utilisé : | N13: 3 | R13: 3 | X13: Nombre de JUMBO utilisé : | AK13: =N13 -> 3 | AO13: =R13 -> 3
A14: Nombre de rouleaux Manuel produits : | N14: 0 | X14: Nbre de rlx Manuel produits : | AK14: =N14 -> 0 | AO14: =R14 -> 0
A15: Poids Moyen : | N15: 0 | X15: Poids Moyen | AK15: =N15 -> 0
A16: Kilos perdus : | N16: 0 | X16: Kilos perdus : | AK16: =N16 -> 0 | AO16: =R16 -> 0
A17: Commentaire : | X17: Commentaire :
A19: Partie Administratif
A20: Ordre de fabrication | H20: Bon d’entré | O20: Bon de sorti
A21: =E2 -> 728
A22: Stock après production | H22: Jumbo | M22: Auto | R22: Manuel
H23: Qts : | J23: =E5-R13 -> 7 | M23: Qts : | R23: Qts : | T23: =S5+R14 -> 0
H24: Kg : | J24: =E6-N13 -> 5 | M24: Kg : | R24: Kg : | T24: =S6+R14 -> 31

Sheet 40µ
A1: FICHE DE PRODUCTION 40µ | O1: Exemplaire Administratif | X1: FICHE DE PRODUCTION 40µ | AN1: Exemplaire Stock
A2: Numéro | E2: ='13µ'!E2:H2 -> 728 | I2: Date : | M2: =TODAY() -> 2017-12-22 | X2: Numéro | AB2: =E2 -> 728 | AF2: Date : | AJ2: =M2 -> 2017-12-22
A3: INVENTAIRE | X3: INVENTAIRE
A4: Stock physique avant production pour la référence à produire | X4: Stock physique avant production pour la référence à produire
A5: Jumbo | C5: Qts : | E5: 10 | H5: Auto | J5: Qts : | O5: Manuel | Q5: Qts : | S5: 0 | X5: Jumbo | Z5: Qts : | AB5: =E5 -> 10 | AE5: Auto | AG5: Qts : | AI5: =L5 ->  | AL5: Manuel | AN5: Qts : | AP5: =S5 -> 0
C6: Kg : | E6: 8 | J6: Kg : | L6: 40 | Q6: Kg : | S6: 41 | Z6: Kg : | AB6: =E6 -> 8 | AG6: Kg : | AI6: =L6 -> 40 | AN6: Kg : | AP6: =S6 -> 41
A7: LOT N° Fournisseur ex ( CF197 + N° Palette) | X7: LOT N° Fournisseur ex ( CF197 + N° Palette)
A8: LOT : | K8: CF | O8: - | X8: LOT : | AC8: =F8 -> 0 | AH8: CF | AL8: - | AO8: =R8 -> 0
A9: Métrage de production | X9: Métrage de production
A10: Métrage Auto | F10: 0 | L10: Métrage Manuel | Q10: 0 | X10: Métrage Auto | AC10: =F10 -> 0 | AI10: Métrage Manuel | AN10: =Q10 -> 0
A11: Tare : | N11: 0 | X11: Tare : | AK11: =N11 -> 0
N12: Kg | R12: Rlx | AK12: Kg | AO12: Rlx
A13: Nombre de JUMBO utilisé : | N13: 3 | R13: 3 | X13: Nombre de JUMBO utilisé : | AK13: =N13 -> 3 | AO13: =R13 -> 3
A14: Nombre de rouleaux Manuel produits : | N14: 0 | X14: Nbre de rlx Manuel produits : | AK14: =N14 -> 0 | AO14: =R14 -> 0
A15: Poids Moyen : | N15: 0 | X15: Poids Moyen | AK15: =N15 -> 0
A16: Kilos perdus : | N16: 0 | X16: Kilos perdus : | AK16: =N16 -> 0 | AO16: =R16 -> 0
A17: Commentaire : | X17: Commentaire :
A19: Partie Administratif
A20: Ordre de fabrication | H20: Bon d’entré | O20: Bon de sorti
A21: =E2 -> 728
A22: Stock après production | H22: Jumbo | M22: Auto | R22: Manuel
H23: Qts : | J23: =E5-R13 -> 7 | M23: Qts : | R23: Qts : | T23: =S5+R14 -> 0
H24: Kg : | J24: =E6-N13 -> 5 | M24: Kg : | R24: Kg : | T24: =S6+R14 -> 41

Sheet Neutre

Sheet Matrice
B2: Stock Manuel | C2: 41 | E2: Epaisseur Du Film
B3: Stock Auto | C3: 40
B4: Type | C4: STD
B5: Laize | C5: 500 | E5: 40µ
A6: 1 | B6: BOB/COLIS
A7: 2 | B7: Poids Bobine moyen
B8: Couleur | C8: TRANS.
B9: Etirabilité | C9: 1.5
B10: Pré-étrité | C10: NON
A11: 3 | B11: Lot Fournisseur | C11: CF197-26
A12: 4 | B12: Date de fabrication
A13: 5 | B13: Métrage BOBINE
A14: 6 | B14: Poids Brut | C14: 0
B15: Poids Net | C15: =C14-C16 -> 0
A16: 7 | B16: Tare | C16: 0
A17: 8 | B17: Palette N°
A18: 9 | B18: Nbre de Pallette à Livrer
B19: quantité colis par palette :
A23: 10 | B23: NOM DU CLIENT

Sheet Table
A1: Type | B1: BOB./COLIS | C1: Métrage | D1: POIDS | E1: COULEUR | F1: ETIRABILITE | G1: PRE-ETIRE | H1: TYPE FILM | I1: CLIENTS
A3: STD | B3: 6 | D3: 1,500 kg | E3: TRANS. | F3: 1.5 | G3: OUI | H3: 13µ | I3: 1
A4: DRK | C4: 200 | D4: 1,800 kg | E4: NOIR | F4: 2.5 | G4: NON | H4: 15µ | I4: 2
A5: FPS | B5: 8 | C5: 250 | D5: 2,00 kg | E5: BLANC | F5: 3 | H5: 17µ | I5: 3
A6: LTK | C6: 280 | D6: 2,200 kg | H6: 20µ | I6: 4
D7: 2,500 kg | H7: 23µ | I7: 5
D8: 2,600 kg | H8: 25µ | I8: 6
D9: 3,00 kg | H9: 28µ | I9: 7
D10: 3,200 kg | H10: 30µ | I10: 8
D11: 16,00 kg | H11: 40µ | I11: 9
I12: 10
I13: 11
I14: 12
I15: 13
I16: 14
I17: 15
I18: 16
I19: 17
D21: 15

Sheet Trame Etiquettes
A5: TYPE | G5: STD | M5: 0 | AA5: TYPE | AG5: STD | AM5: 0
A6: LAIZE | G6: 500 | AA6: LAIZE | AG6: 500
A7: BOB,/COLIS | G7: 0 | AA7: BOB,/COLIS | AG7: 0
A8: COULEUR | G8: TRANS. | AA8: COULEUR | AG8: TRANS.
A9: ETIRABILITE | G9: 1.5 | AA9: ETIRABILITE | AG9: 1.5
A10: Métrage | G10: 0 | AA10: Métrage | AG10: 0
A11: PRE-ETIRE | G11: NON | AA11: PRE-ETIRE | AG11: NON
A12: Poid Net | M12: 0 | AA12: Poid Net | AM12: 0
A14: LOT | D14: C | E14: F | F14: 1 | G14: 9 | H14: 7 | I14: - | J14: 2 | K14: 6 | O14: SUB Lot JDL | AA14: LOT | AD14: C | AE14: F | AF14: 1 | AG14: 9 | AH14: 7 | AI14: - | AJ14: 2 | AK14: 6 | AO14: SUB Lot JDL
A16: GARDER CETTE ETIQUETTE JUSQU’A ÉPUISEMENT TOTAL DU STOCK | AA16: GARDER CETTE ETIQUETTE JUSQU’A ÉPUISEMENT TOTAL DU STOCK
A18: Client : | M18: 0 | AA18: Client : | AM18: 0
A28: TYPE | G28: STD | M28: 0 | AA28: TYPE | AG28: STD | AM28: 0
A29: LAIZE | G29: 500 | AA29: LAIZE | AG29: 500
A30: BOB/COLIS | G30: 0 | AA30: BOB,/COLIS | AG30: 0
A31: COULEUR | G31: TRANS. | AA31: COULEUR | AG31: TRANS.
A32: ETIRABILITE | G32: 1.5 | AA32: ETIRABILITE | AG32: 1.5
A33: Métrage | G33: 0
A34: PRE-ETIRE | G34: NON | AA34: PRE-ETIRE | AG34: NON
A35: Poid Net | M35: 0 | AM35: 0
A37: LOT | D37: C | E37: F | F37: 1 | G37: 9 | H37: 7 | I37: - | J37: 2 | K37: 6 | O37: SUB Lot JDL | AA37: LOT | AD37: C | AE37: F | AF37: 1 | AG37: 9 | AH37: 7 | AI37: - | AJ37: 2 | AK37: 6 | AO37: SUB Lot JDL
A39: GARDER CETTE ETIQUETTE JUSQU’A ÉPUISEMENT TOTAL DU STOCK | AA39: GARDER CETTE ETIQUETTE JUSQU’A ÉPUISEMENT TOTAL DU STOCK
A41: Client : | M41: 0 | AA41: Client : | AM41: 0

Sheet Trame Page A4
A8: Fiche N°: | AA8: 1000
A10: PALETTE N° : | H10: # | J10: 0 | K10: / | L10: 0 | M10: 0
A11: TYPE | H11: STD
A12: LAIZE | G12: 500 | H12: 500
A13: BOB/COLIS | G13: 0 | H13: 0
A14: COLIS/PALETTE | H14: 0
A15: COULEUR | G15: TRANS. | H15: TRANS.
A16: ETIRABILITE | G16: 1.5 | H16: 1.5
A17: Métrage | G17: NON | H17: 0
A18: PRE-ETIRE | G18: NON | H18: NON
A19: Poids Brut : | M19: 0
A20: Poids Net : | M20: 0
A21: Tare :
A23: LOT | D23: C | E23: F | F23: 1 | G23: 9 | H23: 7 | I23: - | J23: 2 | K23: 6 | O23: SUB Lot JDL
A26: MERCI DE GARDER CETTE ETIQUETTE JUSQU’A ÉPUISEMENT TOTAL DU STOCK
M33: 0
A35: CLIENT :
